fUST/lending_fUST_20250521
["ID","MTS","AMOUNT","RATE_DAILY","PERIOD"]
[361843679,1747831833556,-42.47444127,0.00023925,8]
[361843680,1747831833569,-1109.14178699,0.00023925,8]
[361843696,1747831838269,-1855.175,0.00023925,8]
[361843699,1747831838326,-1814.51835957,0.00023925,8]
[361843700,1747831838338,-3190.16812531,0.00023925,8]
[361843735,1747831840639,-150.0,0.00021744,2]
[361843737,1747831840648,-113756.22947635,0.00023925,8]
[361843738,1747831840658,-30327.51,0.00023925,8]
[361843740,1747831840668,-26207.94954877,0.00023925,8]
[361843823,1747831845029,-5000.0,0.00021526,2]
[361843824,1747831845040,-116192.99045123,0.00023925,8]
[361843825,1747831845050,-151.0,0.00023938,2]
[361843826,1747831845060,-6023.53316435,0.00023938,2]
[361843827,1747831845070,-5000.0,0.00023938,2]
[361843828,1747831845080,-5000.0,0.00023938,2]
[361843829,1747831845090,-5000.0,0.00023938,2]
[361843830,1747831845100,-5000.0,0.00023938,2]
[361843831,1747831845109,-500.0,0.00023955,2]
[361843832,1747831845119,-1000.0,0.00023973,2]
[361843833,1747831845129,-723.35908659,0.00023973,2]
[361843834,1747831845141,-10389.71,0.00023999,2]
[361843835,1747831845151,-5053.0,0.00024,2]
[361843836,1747831845161,-450.0,0.00024,120]
[361843838,1747831845172,-555.0,0.00024,2]
[361843839,1747831845181,-20017.0059186,0.00024,2]
[361843840,1747831845192,-3246.0,0.00024,2]
[361843841,1747831845204,-261.91496026,0.00024038,10]
[361843842,1747831845213,-411.62971158,0.00024063,2]
[361843843,1747831845223,-430.0,0.00024107,2]
[361843844,1747831845233,-300.0,0.00024109,2]
[361843845,1747831845243,-163.0,0.00024164,7]
[361843846,1747831845253,-430.0,0.00024177,2]
[361843847,1747831845263,-411.62971158,0.00024225,2]
[361843848,1747831845272,-200.0,0.00024228,7]
[361843849,1747831845282,-200.75900267,0.00024228,7]
[361843850,1747831845292,-261.91496026,0.00024245,10]
[361843851,1747831845302,-430.0,0.00024381,2]
[361843852,1747831845312,-151.0,0.00024382,7]
[361843853,1747831845321,-151.0,0.00024382,7]
[361843854,1747831845331,-300.0,0.00024383,2]
[361843855,1747831845340,-277.1945,0.00024383,7]
[361843856,1747831845350,-151.0,0.00024383,7]
[361843857,1747831845360,-151.0,0.00024383,7]
[361843858,1747831845370,-151.0,0.00024383,7]
[361843859,1747831845381,-151.0,0.00024383,7]
[361843860,1747831845392,-151.0,0.00024387,7]
[361843861,1747831845402,-151.0,0.00024387,7]
[361843862,1747831845412,-151.0,0.00024387,7]
[361843863,1747831845422,-220.718008,0.00024387,7]
[361843864,1747831845431,-411.62971158,0.00024388,2]
[361843865,1747831845441,-500.0,0.00024396,2]
[361843866,1747831845451,-500.0,0.00024396,2]
[361843867,1747831845460,-500.0,0.00024396,2]
[361843868,1747831845470,-500.0,0.00024396,2]
[361843869,1747831845480,-500.0,0.00024396,2]
[361843870,1747831845489,-500.0,0.00024396,2]
[361843871,1747831845499,-500.0,0.00024396,2]
[361843872,1747831845509,-500.0,0.00024396,2]
[361843873,1747831845671,-329.81548145,0.00024396,2]
[361843874,1747831845681,-500.0,0.00024396,2]
[361843875,1747831845692,-500.0,0.00024396,2]
[361843876,1747831845703,-500.0,0.00024396,2]
[361843877,1747831845713,-500.0,0.00024396,2]
[361843878,1747831845723,-500.0,0.00024396,2]
[361843879,1747831845733,-576.20225831,0.00024396,2]
[361843880,1747831845743,-500.0,0.00024396,2]
[361843881,1747831845752,-323.24624671,0.00024396,2]
[361843882,1747831845763,-500.0,0.00024396,2]
[361843883,1747831845774,-500.0,0.00024396,2]
[361843884,1747831845784,-500.0,0.00024396,2]
[361843885,1747831845797,-500.0,0.00024396,2]
[361843886,1747831845811,-274.351326,0.00024398,7]
[361843887,1747831845821,-174.115891,0.00024398,7]
[361843888,1747831845831,-151.0,0.00024398,7]
[361843889,1747831845841,-177.037408,0.00024398,7]
[361843890,1747831845851,-151.0,0.00024398,7]
[361843891,1747831845861,-151.0,0.00024398,7]
[361843892,1747831845871,-270.211908,0.00024398,7]
[361843893,1747831845881,-151.0,0.00024398,7]
[361843894,1747831845891,-151.0,0.00024398,7]
[361843895,1747831845902,-245.626238,0.00024398,7]
[361843896,1747831845912,-151.0,0.00024398,7]
[361843897,1747831845922,-151.0,0.00024398,7]
[361843898,1747831845933,-1119.760795,0.00024399,2]
[361843899,1747831845943,-225.31547,0.00024399,7]
[361843900,1747831845953,-1119.760795,0.00024399,2]
[361843901,1747831845963,-151.0,0.00024399,7]
[361843902,1747831845973,-7131.30286056,0.000244,2]
[361843903,1747831845982,-232.11479786,0.000244,2]
[361843904,1747831845992,-151.0,0.00024402,7]
[361843905,1747831846002,-151.0,0.00024402,7]
[361843906,1747831846025,-198.322409,0.00024402,7]
[361843907,1747831846035,-151.0,0.00024402,7]
[361843908,1747831846046,-151.0,0.00024402,7]
[361843910,1747831846057,-151.0,0.00024402,7]
[361843912,1747831846067,-151.0,0.00024402,7]
[361843914,1747831846077,-151.0,0.00024402,7]
[361843916,1747831846088,-151.0,0.00024402,7]
[361843918,1747831846098,-24652.13888205,0.00024403,2]
[361843920,1747831846109,-151.0,0.00024403,7]
[361843922,1747831846119,-151.0,0.00024403,7]
[361843924,1747831846130,-151.0,0.00024403,7]
[361843925,1747831846140,-151.0,0.00024403,7]
[361843926,1747831846150,-151.0,0.00024403,7]
[361843927,1747831846160,-237.876061,0.00024403,7]
[361843928,1747831846171,-1119.760795,0.00024403,2]
[361843929,1747831846181,-1119.760795,0.00024403,2]
[361843930,1747831846193,-1119.760795,0.00024403,2]
[361843931,1747831846205,-1119.760795,0.00024403,2]
[361843933,1747831846215,-151.0,0.00024403,7]
[361843934,1747831846227,-151.0,0.00024403,7]
[361843935,1747831846237,-151.0,0.00024403,7]
[361843936,1747831846247,-151.0,0.00024403,7]
[361843937,1747831846258,-160.0,0.00024403,7]
[361843938,1747831846269,-422.71322487,0.00024403,7]
[361843940,1747831846279,-151.0,0.00024403,7]
[361843941,1747831846290,-151.0,0.00024403,7]
[361843942,1747831846300,-151.0,0.00024403,7]
[361843943,1747831846310,-3223.38126339,0.00024403,2]
[361843944,1747831846321,-151.0,0.00024403,7]
[361843946,1747831846330,-151.0,0.00024403,7]
[361843948,1747831846340,-151.0,0.00024403,7]
[361843949,1747831846350,-151.0,0.00024403,7]
[361843950,1747831846361,-290.593416,0.00024403,7]
[361843951,1747831846371,-430.0,0.00024451,2]
[361843952,1747831846383,-261.91496026,0.00024452,11]
[361843953,1747831846393,-8350.80393742,0.000245,2]
[361843954,1747831846403,-4700.83764765,0.000245,3]
[361843955,1747831846414,-103718.89015269,0.000245,2]
[361843956,1747831846423,-151.0,0.000245,7]
[361843957,1747831846433,-151.0,0.000245,7]
[361843959,1747831846444,-151.0,0.000245,7]
[361843961,1747831846455,-236.632824,0.000245,7]
[361843962,1747831846465,-151.0,0.000245,7]
[361843963,1747831846474,-151.0,0.000245,7]
[361843964,1747831846484,-1119.760795,0.000245,2]
[361843966,1747831846493,-1119.760795,0.000245,2]
[361843967,1747831846503,-207.84063,0.000245,7]
[361843968,1747831846513,-894.64583333,0.000245,3]
[361843969,1747831846524,-151.0,0.000245,7]
[361843970,1747831846533,-151.0,0.000245,7]
[361843971,1747831846543,-151.0,0.000245,7]
[361843972,1747831846554,-151.0,0.000245,7]
[361843973,1747831846564,-151.0,0.000245,7]
[361843974,1747831846574,-151.0,0.000245,7]
[361843975,1747831846584,-269.331494,0.000245,7]
[361843976,1747831846595,-151.0,0.000245,7]
[361843977,1747831846605,-151.0,0.000245,7]
[361843978,1747831846619,-151.0,0.000245,7]
[361843979,1747831846629,-151.0,0.000245,7]
[361843980,1747831846639,-500.0,0.00024502,2]
[361843981,1747831846649,-1500.0,0.00024521,2]
[361843982,1747831846659,-411.62971158,0.0002455,2]
[361843983,1747831846670,-151.0,0.000246,7]
[361843984,1747831846680,-151.0,0.000246,7]
[361843985,1747831846690,-151.0,0.000246,8]
[361843986,1747831846700,-1433722.98246584,0.0002465,7]
[361843988,1747831846710,-151.0,0.0002465,7]
[361843989,1747831846720,-151.0,0.0002465,7]
[361843990,1747831846730,-151.0,0.0002465,7]
[361843991,1747831846740,-1119.760795,0.0002465,2]
[361843992,1747831846750,-1119.760795,0.0002465,2]
[361843993,1747831846759,-151.0,0.0002465,7]
[361843994,1747831846769,-151.0,0.0002465,7]
[361843995,1747831846778,-160.0,0.0002465,7]
[361843996,1747831846788,-151.0,0.0002465,7]
[361843997,1747831846799,-151.0,0.0002465,7]
[361843998,1747831846809,-151.0,0.0002465,7]
[361843999,1747831846819,-151.0,0.0002465,7]
[361844000,1747831846828,-151.0,0.0002465,7]
[361844001,1747831846839,-430.0,0.00024655,2]
[361844002,1747831846849,-150.0,0.00024656,2]
[361844003,1747831846860,-162.768674,0.00024657,30]
[361844004,1747831846870,-300.0,0.00024657,2]
[361844005,1747831846880,-200.0,0.00024657,2]
[361844006,1747831846890,-207.78131803,0.00024657,2]
[361844007,1747831846900,-791.6,0.00024657,2]
[361844008,1747831846910,-500.0,0.00024658,30]
[361844009,1747831846919,-500.0,0.00024658,30]
[361844010,1747831846929,-1000.0,0.00024658,60]
[361844011,1747831846939,-1000.0,0.00024658,2]
[361844012,1747831846949,-1000.0,0.00024658,2]
[361844013,1747831846959,-1000.0,0.00024658,2]
[361844014,1747831846969,-380.0,0.00024658,2]
[361844015,1747831846979,-200.0,0.00024658,2]
[361844016,1747831846990,-200.0,0.00024658,15]
[361844017,1747831846999,-982.4682877,0.00024658,3]
[361844018,1747831847009,-151.0,0.00024658,7]
[361844019,1747831847018,-151.0,0.00024658,7]
[361844020,1747831847028,-179.790995,0.00024658,7]
[361844021,1747831847038,-2795.4671433,0.00024658,2]
[361844022,1747831847047,-500.0,0.00024658,2]
[361844023,1747831847057,-212.80813391,0.00024658,2]
[361844024,1747831847067,-261.91496026,0.00024659,11]
[361844025,1747831847078,-98479.18997531,0.0002466,7]
[361844026,1747831847088,-98479.18997531,0.0002466,7]
[361844027,1747831847098,-151.0,0.0002466,7]
[361844028,1747831847108,-151.0,0.0002466,7]
[361844029,1747831847119,-151.0,0.0002466,7]
[361844030,1747831847129,-151.0,0.0002466,7]
[361844031,1747831847139,-151.0,0.0002466,7]
[361844032,1747831847148,-1119.760795,0.0002466,2]
[361844033,1747831847158,-1119.760795,0.0002466,2]
[361844034,1747831847170,-1119.760795,0.0002466,2]
[361844035,1747831847179,-1119.760795,0.0002466,2]
[361844036,1747831847191,-151.0,0.0002466,7]
[361844037,1747831847203,-151.0,0.0002466,7]
[361844038,1747831847213,-151.0,0.0002466,7]
[361844039,1747831847223,-151.0,0.0002466,7]
[361844040,1747831847233,-151.0,0.0002466,7]
[361844041,1747831847243,-167.517573,0.0002466,7]
[361844042,1747831847253,-1500.0,0.0002466,14]
[361844043,1747831847263,-1500.0,0.0002466,14]
[361844044,1747831847273,-1500.0,0.0002466,14]
[361844045,1747831847285,-427.298651,0.0002466,14]
[361844046,1747831847295,-151.0,0.0002466,7]
[361844047,1747831847306,-151.0,0.0002466,7]
[361844048,1747831847316,-151.0,0.0002466,7]
[361844049,1747831847325,-292.022808,0.0002466,7]
[361844050,1747831847335,-151.0,0.0002466,7]
[361844051,1747831847345,-151.0,0.0002466,7]
[361844052,1747831847355,-151.0,0.0002466,7]
[361844053,1747831847365,-151.0,0.0002466,7]
[361844054,1747831847374,-500.95780627,0.00024673,2]
[361844055,1747831847384,-500.0,0.00024673,2]
[361844056,1747831847394,-500.0,0.00024673,2]
[361844057,1747831847403,-501.08412304,0.00024673,2]
[361844058,1747831847413,-500.0,0.00024673,2]
[361844059,1747831847423,-150.0,0.00024673,2]
[361844060,1747831847433,-600.0,0.00024673,2]
[361844061,1747831847443,-500.0,0.00024673,2]
[361844062,1747831847453,-500.0,0.00024673,2]
[361844063,1747831847463,-160.0,0.00024674,4]
[361844064,1747831847473,-160.0,0.00024674,5]
[361844065,1747831847482,-176.801964,0.0002469,2]
[361844066,1747831847492,-162.768674,0.0002469,2]
[361844067,1747831847503,-2000.0,0.000247,2]
[361844068,1747831847513,-588721.61,0.000247,7]
[361844069,1747831847523,-7383.07,0.000247,7]
[361844070,1747831847533,-25659.73,0.000247,2]
[361844071,1747831847543,-9030.88,0.000247,7]
[361844072,1747831847552,-148550.66,0.000247,2]
[361844073,1747831847562,-151.0,0.000247,7]
[361844074,1747831847572,-200.879622,0.000247,7]
[361844075,1747831847582,-244.908856,0.000247,7]
[361844076,1747831847592,-1119.760795,0.000247,2]
[361844077,1747831847602,-1119.760795,0.000247,2]
[361844078,1747831847612,-1119.760795,0.000247,2]
[361844079,1747831847621,-1119.760795,0.000247,2]
[361844080,1747831847631,-1119.760795,0.000247,2]
[361844081,1747831847641,-1119.76079947,0.000247,2]
[361844082,1747831847651,-151.0,0.000247,7]
[361844083,1747831847661,-151.0,0.000247,7]
[361844084,1747831847671,-196.916137,0.000247,7]
[361844085,1747831847681,-151.0,0.000247,7]
[361844086,1747831847692,-151.0,0.000247,7]
[361844087,1747831847702,-151.0,0.000247,7]
[361844088,1747831847713,-151.0,0.000247,7]
[361844089,1747831847723,-151.0,0.000247,7]
[361844090,1747831847733,-151.0,0.000247,7]
[361844091,1747831847743,-151.0,0.000247,7]
[361844092,1747831847754,-151.0,0.000247,7]
[361844093,1747831847764,-151.0,0.000247,7]
[361844094,1747831847775,-151.0,0.000247,7]
[361844095,1747831847785,-151.0,0.000247,7]
[361844096,1747831847795,-151.0,0.000247,7]
[361844097,1747831847805,-540.17026897,0.00024725,2]
[361844098,1747831847815,-150.0,0.00024744,2]
[361844099,1747831847826,-7131.30286056,0.00024753,2]
[361844100,1747831847836,-174.458,0.00024753,2]
[361844101,1747831847846,-200.0,0.00024763,120]
[361844102,1747831847856,-12851.23284405,0.00024774,2]
[361844103,1747831847866,-151.0,0.00024774,7]
[361844104,1747831847877,-151.0,0.00024774,7]
[361844105,1747831847886,-1000.0,0.00024795,2]
[361844106,1747831847897,-1000.0,0.00024795,2]
[361844107,1747831847907,-200.0,0.00024823,120]
[361844108,1747831847918,-261.91496026,0.00024866,12]
[361844109,1747831847928,-202.10439689,0.00024873,2]
[361844110,1747831847938,-10000.0,0.0002488,7]
[361844111,1747831847950,-5942.0,0.0002488,7]
[361844112,1747831847960,-10000.0,0.000249,7]
[361844113,1747831847971,-678.38799754,0.000249,15]
[361844114,1747831847981,-1500.0,0.000249,2]
[361844115,1747831847992,-1500.0,0.000249,2]
[361844116,1747831848002,-1500.0,0.000249,2]
[361844117,1747831848013,-1500.0,0.000249,2]
[361844118,1747831848023,-1500.0,0.000249,2]
[361844119,1747831848033,-1500.0,0.000249,2]
[361844120,1747831848043,-1500.0,0.000249,2]
[361844121,1747831848053,-1500.0,0.000249,2]
[361844122,1747831848063,-1797.82,0.000249,2]
[361844123,1747831848073,-1500.0,0.000249,2]
[361844124,1747831848083,-1500.0,0.000249,2]
[361844125,1747831848094,-619231.633338,0.000249,2]
[361844126,1747831848103,-552.17,0.00024901,30]
[361844127,1747831848113,-430.0,0.00024929,2]
[361844128,1747831848123,-300.0,0.00024931,2]
[361844129,1747831848132,-1000.0,0.00024932,2]
[361844130,1747831848142,-1000.0,0.00024932,2]
[361844131,1747831848152,-200.0,0.0002495,120]
[361844132,1747831848163,-201.0,0.0002496,10]
[361844133,1747831848172,-1558604.11517119,0.00025,20]
[361844134,1747831848183,-19000.0,0.00025,5]
[361844135,1747831848204,-500.0,0.00025,2]
[361844136,1747831848214,-500.0,0.00025,2]
[361844137,1747831848224,-2017.46380325,0.00025,14]
[361844138,1747831848234,-100000.0,0.00025,30]
[361844139,1747831848244,-13714.54614164,0.00025,2]
[361844140,1747831848255,-1059.37551109,0.00025,2]
[361844141,1747831848264,-2608.8484205,0.00025,2]
[361844142,1747831848274,-206.95087253,0.00025,2]
[361844143,1747831848284,-10364.0,0.00025,2]
[361844144,1747831848294,-500.0,0.00025,2]
[361844145,1747831848304,-150.0,0.00025,3]
[361844146,1747831848313,-676.65604426,0.00025,2]
[361844147,1747831848323,-120000.0,0.00025,2]
[361844148,1747831848334,-411629.14309011,0.00025,20]
[361844149,1747831848344,-35206.76730093,0.00025,7]
[361844150,1747831848354,-500.0,0.00025,4]
[361844151,1747831848364,-21586.57391877,0.00025,30]
[361844152,1747831848374,-5000.0,0.00025,10]
[361844153,1747831848384,-19165.1891771,0.00025,2]
[361844154,1747831848394,-104096.83793752,0.00025,30]
[361844155,1747831848404,-20000.0,0.00025,30]
[361844156,1747831848414,-160.56066625,0.00025,7]
[361844157,1747831848424,-193.02049255,0.00025,3]
[361844158,1747831848433,-4843.0,0.00025,7]
[361844159,1747831848444,-2673.0,0.00025,2]
[361844160,1747831848454,-274235.337,0.00025,14]
[361844161,1747831848463,-20566.01903,0.00025,30]
[361844162,1747831848473,-193.35946498,0.00025,120]
[361844163,1747831848483,-489.99069022,0.00025,120]
[361844164,1747831848493,-1152.71202719,0.00025,120]
[361844165,1747831848503,-499.71778908,0.00025,120]
[361844166,1747831848512,-8040.0,0.00025,100]
[361844167,1747831848522,-5000.0,0.00025,15]
[361844168,1747831848531,-5000.0,0.00025,15]
[361844169,1747831848541,-2633.0,0.00025,30]
[361844170,1747831848551,-8081.93266024,0.00025,30]
[361844171,1747831848561,-50000.0,0.00025,15]
[361844172,1747831848571,-370.25615013,0.00025,20]
[361844173,1747831848580,-2000.0,0.00025,14]
[361844174,1747831848591,-2000.0,0.00025,14]
[361844175,1747831848600,-2000.0,0.00025,14]
[361844176,1747831848610,-2000.0,0.00025,7]
[361844177,1747831848620,-2000.0,0.00025,14]
[361844178,1747831848630,-366.0,0.00025,14]
[361844179,1747831848640,-202.0,0.00025,120]
[361844180,1747831848649,-1001.59542428,0.00025,14]
[361844181,1747831848659,-314.5140147,0.00025,30]
[361844182,1747831848671,-50000.0,0.00025,5]
[361844183,1747831848680,-201.53638904,0.00025,90]
[361844184,1747831848691,-89808.91518271,0.00025,30]
[361844185,1747831848701,-1957.037771,0.00025,5]
[361844186,1747831848711,-5000.0,0.00025,30]
[361844187,1747831848721,-5000.0,0.00025,30]
[361844188,1747831848731,-5000.0,0.00025,30]
[361844189,1747831848741,-5000.0,0.00025,30]
[361844190,1747831848751,-5000.0,0.00025,30]
[361844191,1747831848762,-5000.0,0.00025,30]
[361844192,1747831848772,-5000.0,0.00025,30]
[361844193,1747831848783,-5000.0,0.00025,30]
[361844194,1747831848793,-5000.0,0.00025,30]
[361844195,1747831848804,-5000.0,0.00025,30]
[361844196,1747831848814,-5000.0,0.00025,30]
[361844197,1747831848824,-5000.0,0.00025,30]
[361844198,1747831848835,-5000.0,0.00025,30]
[361844199,1747831848845,-5000.0,0.00025,30]
[361844200,1747831848856,-5000.0,0.00025,30]
[361844201,1747831848867,-1582.77,0.00025,30]
[361844202,1747831848879,-5000.0,0.00025,30]
[361844203,1747831848889,-5000.0,0.00025,30]
[361844204,1747831848900,-5000.0,0.00025,30]
[361844205,1747831848910,-5000.0,0.00025,30]
[361844206,1747831848920,-5000.0,0.00025,30]
[361844207,1747831848931,-5000.0,0.00025,30]
[361844208,1747831848941,-4428.45,0.00025,30]
[361844209,1747831848951,-314.5140147,0.00025,30]
[361844210,1747831848961,-160.0,0.00025,30]
[361844211,1747831848970,-202.640228,0.00025,2]
[361844212,1747831848980,-505.0,0.00025001,30]
[361844213,1747831848990,-10000.0,0.00025016,30]
[361844214,1747831848999,-200.0,0.0002502,120]
[361844215,1747831849009,-1000.0,0.00025068,2]
[361844216,1747831849018,-500.0,0.00025069,2]
[361844217,1747831849178,-261.91496026,0.00025072,12]
[361844218,1747831849190,-4085.44,0.000251,30]
[361844219,1747831849204,-1218.28,0.000251,31]
[361844220,1747831849214,-1218.28,0.000251,31]
[361844221,1747831849224,-1218.28,0.000251,31]
[361844222,1747831849235,-1218.28,0.000251,31]
[361844223,1747831849244,-1218.28,0.000251,31]
[361844224,1747831849254,-1218.28,0.000251,31]
[361844225,1747831849263,-1218.28,0.000251,31]
[361844226,1747831849274,-1218.28,0.000251,31]
[361844227,1747831849284,-1218.28,0.000251,31]
[361844228,1747831849295,-1218.28,0.000251,31]
[361844229,1747831849305,-1218.28,0.000251,31]
[361844230,1747831849314,-1218.28,0.000251,31]
[361844231,1747831849324,-1218.28,0.000251,31]
[361844232,1747831849334,-1218.28,0.000251,31]
[361844233,1747831849344,-1218.28,0.000251,31]
[361844234,1747831849353,-1218.28,0.000251,31]
[361844235,1747831849362,-160.0,0.000251,3]
[361844236,1747831849372,-7131.30286056,0.00025105,2]
[361844237,1747831849382,-5000.0,0.00025124,30]
[361844238,1747831849391,-1278718.96031999,0.00025163,20]
[361844239,1747831849482,-10660.0,0.00023999,2]
[361844241,1747832224376,225.491997,0.00013699,2]
[361844271,1747833032748,-5000.0,0.00018754,2]
[361844273,1747833032758,-617.55561063,0.00019034,3]
[361844275,1747833032768,-500.0,0.00019134,2]
[361844277,1747833032778,-480.0,0.00019602,2]
[361844279,1747833032787,-8299.5035976,0.00019603,2]
[361844281,1747833032797,-4806.2165378,0.0001983,2]
[361844283,1747833032807,-207.52576054,0.000199,2]
[361844285,1747833032816,-212.41679935,0.00019943,2]
[361844287,1747833032825,-526.04846149,0.00020091,2]
[361844289,1747833032836,-225.491997,0.00020187,2]
[361844291,1747833032846,-894.64583333,0.00020685,2]
[361844293,1747833032855,-160.0,0.00020886,2]
[361844295,1747833032865,-160.0,0.00020886,2]
[361844297,1747833032874,-207.5257605,0.000209,4]
[361844299,1747833032884,-3000.0,0.00021,2]
[361844301,1747833032898,-3000.0,0.0002101,2]
[361844303,1747833032907,-3000.0,0.0002102,2]
[361844305,1747833032917,-3000.0,0.0002103,2]
[361844307,1747833032927,-3000.0,0.0002104,2]
[361844309,1747833032937,-3000.0,0.0002105,2]
[361844311,1747833032947,-3000.0,0.0002106,2]
[361844313,1747833032956,-500.0,0.00021067,2]
[361844315,1747833032966,-199.48801978,0.00021067,2]
[361844317,1747833032976,-500.0,0.00021067,2]
[361844319,1747833032985,-500.0,0.00021067,2]
[361844321,1747833032995,-500.0,0.00021067,2]
[361844323,1747833033004,-500.0,0.00021067,2]
[361844325,1747833033014,-500.0,0.00021067,2]
[361844328,1747833033024,-500.0,0.00021067,2]
[361844330,1747833033034,-500.0,0.00021067,2]
[361844331,1747833033045,-251.19458915,0.00021067,2]
[361844334,1747833033055,-500.0,0.00021067,2]
[361844336,1747833033065,-574.59878269,0.00021067,2]
[361844337,1747833033075,-500.0,0.00021067,2]
[361844340,1747833033085,-500.0,0.00021067,2]
[361844342,1747833033095,-500.0,0.00021067,2]
[361844343,1747833033105,-500.0,0.00021067,2]
[361844345,1747833033115,-500.0,0.00021067,2]
[361844347,1747833033124,-500.0,0.00021067,2]
[361844349,1747833033134,-500.0,0.00021067,2]
[361844351,1747833033145,-500.0,0.00021067,2]
[361844353,1747833033156,-500.0,0.00021067,2]
[361844355,1747833033166,-500.0,0.00021067,2]
[361844358,1747833033176,-500.0,0.00021067,2]
[361844359,1747833033186,-500.0,0.00021067,2]
[361844362,1747833033196,-500.0,0.00021067,2]
[361844363,1747833033206,-500.0,0.00021067,2]
[361844366,1747833033216,-500.0,0.00021067,2]
[361844367,1747833033226,-500.0,0.00021067,2]
[361844369,1747833033236,-581.66027839,0.00021067,2]
[361844397,1747833033494,-500.0,0.00021067,2]
[361844399,1747833033505,-500.0,0.00021067,2]
[361844401,1747833033516,-500.0,0.00021067,2]
[361844403,1747833033530,-500.0,0.00021067,2]
[361844405,1747833033540,-500.0,0.00021067,2]
[361844407,1747833033550,-500.0,0.00021067,2]
[361844409,1747833033560,-500.0,0.00021067,2]
[361844411,1747833033571,-500.0,0.00021067,2]
[361844413,1747833033581,-500.0,0.00021067,2]
[361844415,1747833033591,-500.0,0.00021067,2]
[361844417,1747833033602,-500.0,0.00021067,2]
[361844419,1747833033614,-500.0,0.00021067,2]
[361844421,1747833033624,-500.0,0.00021067,2]
[361844423,1747833033634,-584.47424616,0.00021067,2]
[361844425,1747833033644,-500.0,0.00021067,2]
[361844427,1747833033654,-500.0,0.00021067,2]
[361844429,1747833033664,-3000.0,0.0002107,2]
[361844431,1747833033674,-3000.0,0.0002108,2]
[361844433,1747833033684,-3000.0,0.0002109,2]
[361844435,1747833033695,-3000.0,0.000211,2]
[361844437,1747833033705,-3000.0,0.0002111,2]
[361844439,1747833033715,-3000.0,0.0002112,2]
[361844441,1747833033725,-3000.0,0.0002113,2]
[361844443,1747833033735,-3000.0,0.0002114,2]
[361844445,1747833033744,-3000.0,0.0002115,2]
[361844447,1747833033755,-3000.0,0.0002116,2]
[361844449,1747833033764,-1656.45642652,0.0002117,2]
[361844452,1747833033779,-532.15,0.0002117,2]
[361844614,1747833038640,-160.0,0.00018754,2]
[361844615,1747833038651,-300.0,0.00019602,2]
[361844616,1747833038661,-811.39357348,0.0002117,2]
[361844617,1747833038671,-3000.0,0.0002118,2]
[361844618,1747833038681,-3000.0,0.0002119,2]
[361844619,1747833038691,-3000.0,0.000212,2]
[361844620,1747833038702,-3000.0,0.0002121,2]
[361844621,1747833038712,-3000.0,0.0002122,2]
[361844622,1747833038721,-500.0,0.00021229,2]
[361844623,1747833038731,-500.0,0.00021229,2]
[361844624,1747833038741,-500.0,0.00021229,2]
[361844625,1747833038751,-430.87083702,0.00021229,2]